bitfinex/quotes_ETHUSD_20240822
["timestamp","ask_amount","ask_price","bid_price","bid_amount"]
[1724287992040,0.48258745,2638.4,2638.1,3.7906]
[1724288002160,0.08620109,2638.4,2638.1,3.7906]
[1724288005128,0.08620109,2638.4,2638.1,3.79052]
[1724288005282,1.457,2638.3,2637.9,3.79081]
[1724288005717,0.08639539,2638.2,2637.9,3.79081]
[1724288006033,1.457,2638.3,2637.9,3.79081]
[1724288006176,1.457,2638.3,2637.9,7.58162]
[1724288006528,0.08639437,2638.2,2637.9,7.58162]
[1724288007057,0.08630945,2638.1,2637.9,7.58162]
[1724288007554,1.457,2638.3,2637.9,7.58162]
[1724288007708,0.0862235,2638.0,2637.9,7.58162]
[1724288008057,1.457,2638.3,2638.0,3.79073]
[1724288008366,5.24704,2638.5,2638.0,3.79073]
[1724288008662,0.903701,2638.4,2638.0,3.79073]
[1724288009908,0.903701,2638.4,2637.9,3.79081]
[1724288010109,0.903701,2638.4,2638.0,3.79072]
[1724288010592,0.08639672,2638.3,2638.0,3.79072]
[1724288011891,2.43349672,2638.3,2638.0,3.79072]
[1724288012094,0.08639672,2638.3,2638.0,3.79072]
[1724288012400,0.39650176,2638.2,2638.0,3.79072]
[1724288012548,0.08622382,2638.1,2638.0,3.79072]
[1724288012748,0.39650176,2638.2,2638.0,3.79072]
[1724288012944,0.08622484,2638.1,2638.0,3.79072]
[1724288013150,0.39650176,2638.2,2638.0,3.79072]
[1724288013351,0.08622484,2638.1,2638.0,3.79072]
[1724288013596,0.39650176,2638.2,2638.1,3.7906]
[1724288013749,0.48281152,2638.2,2638.1,3.7906]
[1724288014394,0.48281152,2638.2,2638.1,7.96026]
[1724288014395,0.39650176,2638.2,2638.1,7.96026]
[1724288017496,0.39650176,2638.2,2638.1,10.34686]
[1724288021176,0.47403131,2638.2,2638.1,10.34686]
[1724288021687,0.39650176,2638.2,2638.1,10.34686]
[1724288027941,0.39650176,2638.2,2638.0,19.44]
[1724288028825,0.06718541,2638.1,2638.0,19.44]
[1724288030238,0.06718541,2638.1,2638.0,19.43870302]
[1724288030583,10.10368541,2638.1,2638.0,19.43870302]
[1724288030833,3.79077,2638.0,2637.4,6.79149]
[1724288031014,1.457,2637.9,2637.4,6.79149]
[1724288031214,0.06679761,2637.8,2637.4,6.79149]
[1724288031412,0.46329249,2637.8,2637.4,6.79149]
[1724288032188,0.46329249,2637.8,2637.5,3.79143]
[1724288033578,0.06679761,2637.8,2637.5,7.58286]
[1724288033789,0.06679761,2637.8,2637.6,3.79129]
[1724288033935,1.457,2638.1,2637.7,2.4879]
[1724288034128,0.87666436,2638.0,2637.7,2.4879]
[1724288034349,0.87666436,2638.0,2637.7,6.27906]
[1724288034532,0.06672776,2638.0,2637.7,6.27906]
[1724288035170,0.06672776,2638.0,2637.7,10.07015]
[1724288035536,0.06672776,2638.0,2637.8,3.79103]
[1724288035930,0.39649602,2638.2,2637.8,3.79103]
[1724288036267,0.066787,2638.1,2637.7,10.07009]
[1724288036586,0.8689066,2638.1,2637.7,6.27899]
[1724288038785,0.8689066,2638.1,2637.7,3.79109]
[1724288039574,3.8468,2637.9,2637.4,3.0]
[1724288039791,3.8468,2637.9,2637.3,6.79164]
[1724288039792,0.38468,2637.8,2637.3,6.79164]
[1724288040108,0.06644822,2637.7,2637.4,3.79161]
[1724288040614,0.06638089,2637.6,2637.4,3.79161]
[1724288040809,0.38468,2637.8,2637.4,3.79161]
[1724288041110,0.06646584,2637.7,2637.5,7.58282]
[1724288041266,0.06646584,2637.7,2637.6,3.79132]
[1724288041466,7.53509,2638.1,2637.6,3.79132]
[1724288041702,0.06643463,2637.7,2637.6,3.79132]
[1724288041873,7.53509,2638.1,2637.6,3.79132]
[1724288042076,0.06643463,2637.7,2637.6,3.79132]
[1724288042287,7.53509,2638.1,2637.6,3.79132]
[1724288042464,0.0664336,2637.7,2637.6,3.79132]
[1724288042814,0.0664336,2637.7,2637.5,6.26087]
[1724288042815,0.06641092,2637.7,2637.5,3.79137]
[1724288043025,1.457,2637.9,2637.5,3.79137]
[1724288043380,0.06647421,2637.8,2637.5,3.79137]
[1724288043581,1.457,2637.9,2637.5,3.79137]
[1724288043778,0.59129457,2637.8,2637.3,9.19027]
[1724288043977,0.59129457,2637.8,2637.3,3.79167]
[1724288043978,2.4726,2637.8,2637.3,3.79167]
[1724288044211,2.4726,2637.8,2637.3,3.79166]
[1724288044447,0.06643463,2637.7,2637.3,3.79166]
[1724288044950,2.4726,2637.8,2637.3,3.79166]
[1724288045243,0.8384846,2637.7,2637.4,3.79157]
[1724288046027,0.8384846,2637.7,2637.3,3.79166]
[1724288047807,0.8384846,2637.7,2637.4,3.79157]
[1724288048419,0.0664336,2637.7,2637.4,3.79157]
[1724288048752,3.79091,2637.9,2637.4,3.79157]
[1724288049052,0.06638406,2637.8,2637.4,3.79157]
[1724288049258,0.46285761,2637.8,2637.4,3.79157]
[1724288053310,1.12451937,2637.8,2637.4,3.79157]
[1724288055048,2.4935,2637.7,2637.2,3.79178]
[1724288055202,0.06623582,2637.6,2637.2,3.79178]
[1724288056200,5.24879,2637.3,2637.1,7.49]
[1724288056406,0.751619,2637.2,2637.0,19.43870302]
[1724288056547,1.457,2637.3,2637.0,19.43870302]
[1724288056860,0.06576586,2637.2,2637.0,19.43870302]
[1724288057254,1.457,2637.3,2637.0,19.43870302]
[1724288057898,0.06576586,2637.2,2637.0,19.43870302]
[1724288058295,7.74694,2637.3,2637.0,19.43870302]
[1724288058596,0.774694,2637.2,2637.0,19.43870302]
[1724288059152,0.06568088,2637.1,2637.0,19.43870302]
[1724288060098,0.06568088,2637.1,2637.0,21.88860302]
[1724288060422,7.53944,2637.6,2637.0,21.88860302]
[1724288060571,4.99011328,2637.5,2637.1,19.43870302]
[1724288061884,1.457,2637.4,2637.1,19.43870302]
[1724288062299,0.06539529,2637.3,2637.1,19.43870302]
[1724288064245,2.2684,2637.2,2637.1,19.43870302]
[1724288064389,2.33375465,2637.2,2637.1,19.43870302]
[1724288066196,3.13165528,2637.2,2637.1,19.43870302]
[1724288066392,4.58865528,2637.2,2637.1,19.43870302]
[1724288066704,4.58865528,2637.2,2636.7,3.79259]
[1724288066705,8.38055528,2637.2,2636.7,3.79259]
[1724288066923,4.58865528,2637.2,2636.7,3.79259]
[1724288067125,4.58865528,2637.2,2636.7,7.58518]
[1724288067742,4.58865528,2637.2,2636.7,3.79259]
[1724288067960,4.58865528,2637.2,2636.7,7.5851]
[1724288069354,4.58865528,2637.2,2636.7,7.58503]
[1724288070865,4.58865528,2637.2,2636.7,3.79251]
[1724288071166,4.58865528,2637.2,2636.4,3.793]
[1724288071167,1.457,2636.8,2636.4,3.793]
[1724288071324,1.457,2636.8,2636.5,3.7929]
[1724288071523,0.06480107,2636.7,2636.5,3.7929]
[1724288071930,1.457,2636.8,2636.5,3.7929]
[1724288072256,5.2492,2637.0,2636.5,3.7929]
[1724288072410,1.14112792,2636.9,2636.5,3.7929]
[1724288075454,5.2495,2636.8,2636.3,3.79305]
[1724288075662,0.0647401,2636.7,2636.3,3.79305]
[1724288075864,5.2495,2636.8,2636.3,3.79305]
[1724288076017,0.06472799,2636.7,2636.3,7.58616]
[1724288076217,1.457,2636.8,2636.4,3.79303]
[1724288076453,0.06472799,2636.7,2636.4,3.79303]
[1724288076661,1.457,2636.8,2636.4,3.79303]
[1724288076867,0.06472697,2636.7,2636.4,3.79303]
[1724288077377,1.457,2636.8,2636.4,3.79303]
[1724288077670,6.09143,2637.1,2636.4,3.79303]
[1724288077671,6.09143,2637.1,2636.5,6.1413]
[1724288077954,0.06471589,2636.7,2636.6,3.79264]
[1724288078295,0.06460699,2636.7,2636.6,3.79264]
[1724288078666,1.457,2637.0,2636.6,3.79264]
[1724288078995,0.0646221,2636.7,2636.6,3.79264]
[1724288079196,1.457,2637.0,2636.6,3.79264]
[1724288079396,0.06462313,2636.7,2636.6,3.79264]
[1724288079845,0.39649892,2636.9,2636.6,3.79264]
[1724288080049,0.06470916,2636.8,2636.6,3.79264]
[1724288082711,0.06470916,2636.8,2636.5,3.7929]
[1724288082920,1.52170916,2636.8,2636.5,3.7929]
[1724288085816,2.31909597,2636.8,2636.2,2.3823]
[1724288086116,3.79264,2636.7,2636.2,9.17554]
[1724288086288,6.23184,2636.7,2636.2,9.17554]
[1724288086487,2.30562268,2636.6,2636.1,23.34903254]
[1724288086703,2.37012347,2636.6,2636.1,23.34903254]
[1724288087376,2.37012347,2636.6,2636.1,27.14243254]
[1724288087601,2.37012347,2636.6,2636.1,23.34903254]
[1724288088133,6.16292347,2636.6,2636.1,19.55565254]
[1724288088269,1.457,2636.4,2636.1,19.55565254]
[1724288088473,0.06406108,2636.3,2636.1,19.55565254]
[1724288089509,1.457,2636.2,2636.1,19.55565254]
[1724288089708,1.457,2636.2,2636.1,0.11694952]
[1724288090145,1.52093467,2636.2,2636.1,0.11694952]
[1724288090436,2.43166514,2636.2,2636.1,0.11694952]
[1724288091528,0.06393467,2636.2,2636.1,0.11694952]
[1724288091895,1.457,2636.4,2636.1,0.11694952]
[1724288092409,0.06386639,2636.3,2636.1,0.11694952]
[1724288096065,0.06386639,2636.3,2636.2,2.385]
[1724288096234,1.457,2636.7,2636.2,2.385]
[1724288096432,0.06412961,2636.6,2636.2,2.385]
[1724288096730,0.06412961,2636.6,2636.1,3.91034952]
[1724288096731,1.457,2636.5,2636.1,3.91034952]
[1724288097099,0.06399788,2636.4,2636.1,3.91034952]
[1724288097960,1.457,2636.3,2636.1,0.11694952]
[1724288098115,0.53141579,2636.2,2636.1,0.11694952]
[1724288098315,0.59524154,2636.2,2636.1,0.11694952]
[1724288098556,0.06382575,2636.2,2636.1,0.11694952]
[1724288099856,1.457,2636.3,2636.1,0.11694952]
[1724288100061,0.06382472,2636.2,2636.1,0.11694952]
[1724288100260,1.457,2636.3,2636.1,0.11694952]
[1724288100562,0.06382575,2636.2,2636.1,0.11694952]
[1724288100726,0.97453633,2636.2,2636.1,0.11694952]
[1724288100928,7.19624058,2636.2,2636.1,0.11694952]
[1724288101321,7.26006633,2636.2,2636.1,0.11694952]
[1724288101916,0.06382575,2636.2,2636.1,0.11694952]
[1724288102313,0.3965314,2636.2,2636.1,0.11694952]
[1724288102712,0.46026433,2636.2,2636.1,0.11694952]
[1724288103963,0.3965314,2636.2,2636.1,0.11694952]
[1724288104375,0.46023101,2636.2,2636.1,0.11694952]
[1724288107379,0.3965314,2636.2,2636.1,7.5453137]
[1724288107677,0.3965314,2636.2,2636.1,0.11694952]
[1724288108024,0.46026433,2636.2,2636.1,0.11694952]
[1724288108869,0.46026433,2636.2,2636.1,19.55565254]
[1724288108870,2.6552314,2636.2,2636.1,19.55565254]
[1724288109609,6.4485614,2636.2,2636.1,19.55565254]
[1724288109974,6.51229331,2636.2,2636.1,19.55565254]
[1724288110402,7.68854464,2636.2,2636.1,19.55565254]
[1724288112286,7.68854464,2636.2,2636.1,0.11694952]
[1724288114846,11.48187464,2636.2,2636.1,0.11694952]
[1724288118055,11.87791525,2636.2,2636.1,0.11694952]
[1724288119920,13.41254525,2636.2,2636.1,0.11694952]
[1724288120107,16.36924525,2636.2,2636.1,0.11694952]
[1724288122148,12.02591525,2636.2,2636.1,0.11694952]
[1724288124906,9.61921525,2636.2,2636.1,0.11694952]
[1724288125108,9.22317464,2636.2,2636.1,0.11694952]
[1724288127646,0.46026331,2636.2,2636.1,0.11694952]
[1724288127852,0.46026331,2636.2,2636.1,2.42434952]
[1724288128653,1.91726331,2636.2,2636.1,2.42434952]
[1724288129743,5.71059331,2636.2,2636.1,0.11694952]
[1724288130258,1.91726331,2636.2,2636.1,0.11694952]
[1724288130758,0.46026331,2636.2,2636.1,2.42434952]
[1724288131087,0.46026331,2636.2,2636.1,3.04614547]
[1724288131626,0.46026331,2636.2,2636.1,2.42434952]
[1724288138786,0.46026331,2636.2,2636.1,10.01130952]
[1724288139286,0.3965314,2636.2,2636.1,6.21782952]
[1724288139452,0.46034502,2636.2,2636.1,6.21782952]
[1724288140591,0.46034502,2636.2,2636.1,7.21897947]
[1724288140994,0.46034502,2636.2,2636.1,3.42549947]
[1724288141487,0.46034502,2636.2,2636.1,2.42434952]
[1724288145395,0.46034502,2636.2,2636.1,6.21782952]
[1724288145786,0.46034502,2636.2,2636.1,10.01130952]
[1724288146202,0.3965314,2636.2,2636.1,10.01130952]
[1724288146351,0.46046619,2636.2,2636.1,10.01130952]
[1724288147393,0.46046619,2636.2,2636.1,11.01244047]
[1724288148175,0.3965314,2636.2,2636.1,11.01244047]
[1724288148407,0.46051749,2636.2,2636.1,11.01244047]
[1724288150108,0.46051749,2636.2,2636.1,7.21896047]
[1724288158041,0.46051749,2636.2,2636.1,0.11694952]
[1724288160833,1.91751749,2636.2,2636.1,0.11694952]
[1724288169105,0.46051749,2636.2,2636.1,0.11694952]
[1724288169307,0.3965314,2636.2,2636.1,0.11694952]
[1724288169541,0.3965314,2636.2,2636.1,2.39834952]
[1724288169542,0.46044992,2636.2,2636.1,2.39834952]
[1724288169745,0.3965314,2636.2,2636.1,6.81103247]
[1724288171646,0.3965314,2636.2,2636.1,6.19182952]
[1724288172451,0.3965314,2636.2,2636.1,6.66669874]
[1724288172854,0.3965314,2636.2,2636.1,10.46017874]
[1724288174819,0.3965314,2636.2,2636.1,6.66669874]
[1724288176973,0.3965314,2636.2,2636.1,2.87321874]
[1724288177117,0.3965314,2636.2,2636.1,2.39834952]
[1724288177315,0.45818446,2636.2,2636.1,2.39834952]
[1724288177515,0.45818446,2636.2,2636.1,0.5918186]
[1724288177715,0.45818446,2636.2,2636.1,0.11694952]
[1724288177963,2.42435585,2636.2,2636.1,0.11694952]
[1724288178268,2.48599681,2636.2,2636.1,0.11694952]
[1724288181471,6.27932681,2636.2,2636.1,0.11694952]
[1724288182020,2.48599681,2636.2,2636.1,0.11694952]
[1724288182477,1.91517236,2636.2,2636.1,0.11694952]
[1724288182620,0.45817236,2636.2,2636.1,6.36712952]
[1724288182820,0.45817236,2636.2,2636.1,6.84200593]
[1724288183117,0.3965314,2636.2,2636.1,6.84200593]
[1724288183322,0.3965314,2636.2,2636.1,7.90556052]
[1724288185065,0.3965314,2636.2,2636.1,4.11208052]
[1724288185629,0.45382131,2636.2,2636.1,4.11208052]
[1724288186127,0.3965314,2636.2,2636.1,4.11208052]
[1724288186656,0.3965314,2636.2,2636.1,4.11206679]
[1724288187241,0.45383341,2636.2,2636.1,4.11206679]
[1724288187442,0.3965314,2636.2,2636.1,4.11206679]
[1724288187642,0.3965314,2636.2,2636.1,3.0485122]
[1724288187923,0.4538183,2636.2,2636.1,3.04851966]
[1724288188151,0.3965314,2636.2,2636.1,3.04851966]
[1724288189626,0.3965314,2636.2,2636.1,2.57364952]
[1724288189830,0.3965314,2636.2,2636.1,3.04852497]
[1724288190139,0.3965314,2636.2,2636.1,0.11694952]
[1724288190341,5.6468614,2636.2,2636.1,0.11694952]
[1724288190555,6.64817559,2636.2,2636.1,0.11694952]
[1724288190958,10.44150559,2636.2,2636.1,0.11694952]
[1724288192375,12.75520559,2636.2,2636.1,0.11494952]
[1724288195375,8.90457054,2636.2,2636.1,0.11494952]
[1724288195580,8.96190888,2636.2,2636.1,0.11494952]
[1724288195928,6.64820888,2636.2,2636.1,0.11494952]
[1724288204294,9.14720888,2636.2,2636.1,0.11494952]
[1724288205765,13.33606051,2636.2,2636.1,0.11494952]
[1724288205962,13.31406051,2636.2,2636.1,0.11494952]
[1724288208998,7.04373051,2636.2,2636.1,0.11494952]
[1724288209302,6.64820888,2636.2,2636.1,0.11494952]
[1724288211191,10.44153888,2636.2,2636.1,0.11494952]
[1724288212804,6.64820888,2636.2,2636.1,0.11494952]
[1724288213102,5.70419974,2636.2,2636.1,0.11494952]
[1724288215487,1.91086974,2636.2,2636.1,0.11494952]
[1724288215857,0.45386974,2636.2,2636.1,0.11494952]
[1724288216202,1.91086974,2636.2,2636.1,0.11494952]
[1724288216505,5.70419974,2636.2,2636.1,0.11494952]
[1724288216687,10.44727271,2636.2,2636.1,0.11494952]
[1724288220899,6.65394271,2636.2,2636.1,0.11494952]
[1724288224055,10.44727271,2636.2,2636.1,0.11494952]
[1724288227272,10.84294024,2636.2,2636.1,0.11494952]
[1724288230809,17.12247024,2636.2,2636.1,0.11494952]
[1724288231107,13.32914024,2636.2,2636.1,0.11494952]
[1724288233724,20.67247024,2636.2,2636.1,0.11494952]
[1724288234023,14.87214024,2636.2,2636.1,0.11494952]
[1724288234168,16.32914024,2636.2,2636.1,0.11494952]
[1724288236271,12.38594024,2636.2,2636.1,0.11494952]
[1724288236677,13.84294024,2636.2,2636.1,0.11494952]
[1724288240026,17.63627024,2636.2,2636.1,0.11494952]
[1724288240635,13.84294024,2636.2,2636.1,0.11494952]
[1724288241191,17.63627024,2636.2,2636.1,0.11494952]
[1724288241602,19.94577024,2636.2,2636.1,0.11494952]
[1724288242022,23.73910024,2636.2,2636.1,0.11494952]
[1724288242351,3.79458,2635.4,2635.2,2.438]
[1724288242499,1.457,2635.3,2635.2,2.438]
[1724288242835,1.50990485,2635.3,2635.2,2.438]
[1724288243033,1.90626219,2635.3,2635.2,2.438]
[1724288248230,5.70089219,2635.3,2635.2,2.438]
[1724288248434,3.795,2635.1,2634.6,2.3537]
[1724288248757,1.457,2634.9,2634.6,2.3537]
[1724288249118,0.0520217,2634.8,2634.7,2.3537]
[1724288249540,5.252,2635.1,2634.7,2.3537]
[1724288249948,0.05221667,2635.0,2634.7,2.3537]
[1724288251834,1.457,2634.9,2634.7,2.3537]
[1724288252227,0.05176525,2634.8,2634.7,2.3537]
[1724288252630,0.05176525,2634.8,2634.2,2.2583]
[1724288252631,3.79607,2634.3,2634.2,2.2583]
[1724288252829,3.79607,2634.3,2633.6,11.28706]
[1724288252830,3.7963,2634.2,2633.7,2.2583]
[1724288253067,1.457,2633.8,2633.7,2.2583]
[1724288253280,3.79722,2633.5,2633.4,0.127076]
[1724288253575,1.836722,2633.5,2633.4,0.127076]
[1724288253715,5.30494072,2633.5,2633.4,0.127076]
[1724288253917,3.84794072,2633.5,2633.4,0.127076]
[1724288254165,0.05072072,2633.5,2633.4,0.127076]
[1724288254672,3.79697,2633.7,2633.4,0.127076]
[1724288254966,0.05061343,2633.5,2633.4,0.127076]
[1724288255167,3.79697,2633.7,2633.4,0.127076]
[1724288255318,0.05041652,2633.5,2633.4,0.127076]
[1724288255517,3.7967,2633.9,2633.5,2.4148]
[1724288256161,3.79641,2634.1,2633.5,2.4148]
[1724288256328,3.79652,2634.0,2633.5,2.4148]
[1724288256532,8.033607,2634.3,2633.5,2.4148]
[1724288256717,4.1033607,2634.2,2633.5,2.4148]
[1724288256919,3.79661,2634.0,2633.5,2.4148]
[1724288257170,7.8995907,2634.2,2633.5,2.4148]
[1724288257171,3.79623,2634.2,2633.5,2.4148]
[1724288257671,3.79637,2634.1,2633.5,2.4148]
[1724288257835,3.79637,2634.1,2633.6,0.6339236]
[1724288258574,0.39638913,2634.0,2633.6,0.6339236]
[1724288260626,0.39638913,2634.0,2633.9,3.79665]
[1724288260825,0.39638913,2634.0,2633.9,6.16925]
[1724288261742,0.44533736,2634.0,2633.9,6.16925]
[1724288262771,0.44533736,2634.0,2633.9,2.3726]
[1724288262984,0.44533736,2634.0,2633.9,6.16925]
[1724288263129,0.39638913,2634.0,2633.9,7.165852]
[1724288263477,0.44577243,2634.0,2633.9,7.165852]
[1724288265473,0.44577243,2634.0,2633.9,3.369202]
[1724288267678,0.44577243,2634.0,2633.9,2.3726]
[1724288268237,0.44577243,2634.0,2633.7,3.0]
[1724288268437,0.39638913,2634.0,2633.6,2.4687]
[1724288268747,3.79665,2633.9,2633.6,2.4687]
[1724288269075,0.04887285,2633.8,2633.6,2.4687]
[1724288269650,4.19290913,2634.0,2633.6,2.4687]
[1724288269651,0.39638913,2634.0,2633.6,2.4687]
[1724288269970,0.04793768,2633.7,2633.6,7.2050936]
[1724288270133,0.39638913,2634.0,2633.6,3.4080136]
[1724288270345,0.39638913,2634.0,2633.7,1.02051536]
[1724288270688,0.04798483,2633.9,2633.6,2.4687]
[1724288271049,0.39638913,2634.0,2633.6,2.4687]
[1724288271287,0.04792029,2633.8,2633.6,2.4687]
[1724288271442,0.39638913,2634.0,2633.7,3.79691]
[1724288271642,0.39638913,2634.0,2633.7,5.103185]
[1724288272066,0.39638913,2634.0,2633.8,3.79667]
[1724288272273,0.39638913,2634.0,2633.7,5.103115]
[1724288272481,0.39638913,2634.0,2633.9,3.79665]
[1724288272842,0.44460457,2634.0,2633.9,3.79665]
[1724288273046,0.39638913,2634.0,2633.9,4.9180065]
[1724288274135,0.39638913,2634.0,2633.9,1.1213565]
[1724288274136,0.44475758,2634.0,2633.9,1.1213565]
[1724288274445,0.39638913,2634.0,2633.8,6.11064]
[1724288274658,0.04830495,2633.9,2633.8,6.11064]
[1724288275287,0.04830495,2633.9,2633.8,2.3139]
[1724288276799,0.04830495,2633.9,2633.4,3.924376]
[1724288276800,0.04830495,2633.9,2633.4,2.527376]
[1724288277007,0.47243636,2633.9,2633.4,2.527376]
[1724288277291,0.47243636,2633.9,2633.4,6.324696]
[1724288277457,0.04830495,2633.9,2633.5,3.7972]
[1724288277660,0.04830495,2633.9,2633.6,3.79702]
[1724288277866,0.39638913,2634.0,2633.8,2.4003]
[1724288278067,0.39638913,2634.0,2633.8,3.399724]
[1724288279198,0.39638913,2634.0,2633.8,2.4003]
[1724288279495,0.04807005,2633.9,2633.8,2.4003]
[1724288281702,0.04807005,2633.9,2633.8,6.19709]
[1724288281873,0.39638913,2634.0,2633.9,3.79665]
[1724288282887,0.39638913,2634.0,2633.9,6.07575]
[1724288283189,0.39638913,2634.0,2633.9,7.063]
[1724288284273,0.4446425,2634.0,2633.9,7.063]
[1724288285356,0.4446425,2634.0,2633.9,2.2791]
[1724288285971,0.4446425,2634.0,2633.9,9.8724]
[1724288286174,0.4446425,2634.0,2633.9,12.8724]
[1724288286413,0.39638913,2634.0,2633.9,12.8724]
[1724288287095,2.2842,2635.2,2634.5,3.79577]
[1724288287096,6.07904,2635.2,2634.5,3.79577]
[1724288287415,0.607904,2635.1,2634.6,2.4207]
[1724288287626,0.65553477,2635.1,2634.6,2.4207]
[1724288287769,1.05180526,2635.1,2634.6,2.4207]
[1724288287975,4.84675526,2635.1,2634.6,2.4207]
[1724288288424,3.79508,2635.0,2634.6,2.4207]
[1724288288804,0.04768645,2634.9,2634.6,2.4207]
[1724288290074,3.79545,2634.8,2634.3,2.3969]
[1724288290279,3.84307197,2634.8,2634.3,2.3969]
[1724288290927,3.84307197,2634.8,2634.2,7.49]
[1724288290928,3.79565,2634.6,2634.2,7.49]
[1724288291135,7.59137,2634.6,2634.0,21.8369]
[1724288291341,0.04745533,2634.5,2634.1,3.79635]
[1724288291827,0.04745533,2634.5,2634.0,21.8369]
[1724288291995,0.04745533,2634.5,2634.0,25.6334]
[1724288292406,3.79565,2634.6,2634.0,25.6334]
[1724288292689,3.79542,2634.8,2634.1,3.79635]
[1724288293113,3.84337479,2634.7,2634.1,3.79635]
[1724288293324,3.84337479,2634.7,2634.0,25.6334]
[1724288293325,3.79566,2634.6,2634.0,25.6334]
[1724288293507,3.84313064,2634.6,2634.0,29.4298]
[1724288293825,3.84313064,2634.6,2634.0,25.6333]
[1724288294052,3.79611,2634.3,2634.0,19.44]
[1724288294194,3.79601,2634.4,2634.0,19.44]
[1724288294383,0.04712594,2634.2,2634.0,19.44]
[1724288294577,3.79601,2634.4,2634.0,19.44]
[1724288294791,0.04706595,2634.1,2634.0,19.44]
[1724288294991,3.7957,2634.6,2634.0,19.44]
[1724288295177,0.04708865,2634.1,2634.0,19.44]
[1724288295410,3.7958,2634.5,2634.0,19.44]
[1724288295635,4.4154,2634.6,2634.0,3.79649]
[1724288295784,0.04724749,2634.4,2634.0,3.79649]
[1724288295983,3.84313366,2634.5,2634.0,3.79649]
[1724288296200,0.04718299,2634.3,2634.0,3.79649]
[1724288296383,0.04726916,2634.4,2634.0,3.79649]
[1724288296589,8.21116,2634.6,2634.0,3.79649]
[1724288296590,0.04709681,2634.2,2634.0,3.79649]
[1724288296787,4.616896,2634.5,2634.0,3.79649]
[1724288297247,0.04729684,2634.4,2634.0,3.79649]
[1724288299147,0.04559539,2634.3,2634.0,3.79649]
[1724288299297,3.7957,2634.6,2634.0,3.79649]
[1724288299498,0.04550921,2634.2,2634.0,3.79649]
[1724288299726,3.7957,2634.6,2634.0,3.79649]
[1724288299915,3.7957,2634.6,2634.1,2.3975]
[1724288300433,3.7957,2634.6,2634.1,6.19386]
[1724288301396,3.79542,2634.8,2634.1,6.813246]
[1724288302224,7.59088,2634.8,2634.1,6.813146]
[1724288302393,3.79542,2634.8,2634.1,6.19376]
[1724288302845,3.79588,2634.5,2633.9,11.28656]
[1724288303140,3.79572,2634.6,2633.9,2.3975]
[1724288303293,3.79606,2634.4,2633.9,2.3975]
[1724288303500,3.79608,2634.3,2633.9,2.3975]
[1724288306538,3.79654,2634.0,2633.5,19.44]
[1724288306708,3.79654,2634.0,2633.4,0.127076]
[1724288307041,3.79608,2634.3,2633.5,2.95584375]
[1724288307242,3.79608,2634.3,2633.5,2.4805]
[1724288307459,3.79608,2634.3,2633.6,4.27224162]
[1724288307602,3.79608,2634.3,2633.6,3.79694]
[1724288307807,5.131124,2634.3,2633.7,3.79693]
[1724288308228,5.131124,2634.3,2633.6,3.79694]
[1724288308458,3.79626,2634.2,2633.6,3.79694]
[1724288309871,3.79647,2634.1,2633.5,6.27763]
[1724288310732,0.04463631,2634.0,2633.5,6.27763]
[1724288311550,3.7968,2633.8,2633.4,0.127076]
[1724288312066,0.04436851,2633.7,2633.4,0.127076]
[1724288312365,3.7968,2633.8,2633.4,0.127076]
[1724288312867,0.0443412,2633.7,2633.4,0.127076]
[1724288313366,3.7968,2633.8,2633.4,0.127076]
[1724288313367,0.04425393,2633.6,2633.4,0.127076]
[1724288313569,3.7968,2633.8,2633.4,0.127076]
[1724288313775,0.04403918,2633.5,2633.4,0.127076]
[1724288313974,3.7968,2633.8,2633.4,0.127076]
[1724288314470,0.04421166,2633.7,2633.4,0.127076]
[1724288314641,3.7968,2633.8,2633.4,0.127076]
[1724288314849,4.556139,2633.8,2633.4,0.127076]
[1724288315042,0.04421064,2633.7,2633.4,0.127076]
[1724288315469,0.04412543,2633.6,2633.4,0.127076]
[1724288315772,3.7968,2633.8,2633.4,0.127076]
[1724288316128,0.04421166,2633.7,2633.4,0.127076]
[1724288316328,3.7968,2633.8,2633.4,0.127076]
[1724288316525,0.04412543,2633.6,2633.4,0.127076]
[1724288316975,3.7968,2633.8,2633.4,0.127076]
[1724288317430,4.556139,2633.8,2633.4,0.127076]
[1724288317629,0.04421064,2633.7,2633.4,0.127076]
[1724288318067,3.79659,2634.0,2633.4,3.924436]
[1724288318375,0.39626311,2633.6,2633.5,2.3714]
[1724288318672,3.79665,2633.9,2633.4,3.924436]
[1724288318830,0.39626921,2633.6,2633.4,3.924436]
[1724288319333,0.39626921,2633.6,2633.4,0.127076]
[1724288320172,0.81557613,2633.6,2633.4,0.127076]
[1724288320328,7.59444,2633.5,2633.4,0.127076]
[1724288320881,0.04388832,2633.5,2633.4,0.127076]
[1724288323570,3.84110832,2633.5,2633.4,0.127076]
[1724288326575,5.30110832,2633.5,2633.4,0.127076]
[1724288326775,6.25055007,2633.5,2633.4,0.127076]
[1724288326976,10.04777007,2633.5,2633.4,0.127076]
[1724288327177,12.39447007,2633.5,2633.4,0.127076]
[1724288327894,10.04777007,2633.5,2633.4,0.127076]
[1724288328274,6.25055007,2633.5,2633.4,0.127076]
[1724288328479,4.79055007,2633.5,2633.4,0.127076]
[1724288330992,14.51097007,2633.5,2633.4,0.127076]
[1724288331449,14.90631079,2633.5,2633.4,0.127076]
[1724288335946,14.51097007,2633.5,2633.4,0.127076]
[1724288336965,14.90644693,2633.5,2633.4,0.127076]
[1724288339228,18.70366693,2633.5,2633.4,0.127076]
[1724288339403,14.90644693,2633.5,2633.4,0.127076]
[1724288340618,11.40144693,2633.5,2633.4,0.127076]
[1724288340759,8.98324693,2633.5,2633.4,0.127076]
[1724288343197,12.48824693,2633.5,2633.4,0.127076]
[1724288344860,8.98324693,2633.5,2633.4,0.127076]
[1724288345059,7.63832832,2633.5,2633.4,0.127076]
[1724288345763,11.14332832,2633.5,2633.4,0.127076]
[1724288346008,11.53881108,2633.5,2633.4,0.127076]
[1724288347169,17.72433108,2633.5,2633.4,0.127076]
[1724288348273,11.53881108,2633.5,2633.4,0.127076]
[1724288348482,13.11203111,2633.5,2633.4,0.127076]
[1724288352430,9.60703111,2633.5,2633.4,0.127076]
[1724288352634,11.06803111,2633.5,2633.4,0.127076]
[1724288353421,9.60703111,2633.5,2633.4,0.127076]